bitfinex-derivatives/quotes_ETHF0:USTF0_20240925
["timestamp","ask_amount","ask_price","bid_price","bid_amount"]
[1727230239940,0.37808,2644.8,2644.5,0.37811]
[1727230240133,5.94587,2644.9,2644.6,1.4051]
[1727230240441,5.5678,2644.9,2644.7,1.39159]
[1727230240741,2.36,2644.9,2644.7,1.39159]
[1727230241157,2.36,2645.1,2644.7,1.0135]
[1727230241340,2.36,2645.1,2644.9,0.37806]
[1727230241939,2.73804,2645.1,2644.8,0.37807]
[1727230244244,3.3813,2645.4,2644.7,4.2213]
[1727230244431,0.37801,2645.3,2645.0,0.37804]
[1727230244636,2.36,2645.2,2645.0,0.37804]
[1727230245444,0.37806,2645.0,2644.7,1.39158]
[1727230245643,2.36,2644.8,2644.7,1.39158]
[1727230246147,2.36,2644.8,2644.7,5.17238]
[1727230246545,2.36,2644.8,2644.7,1.39158]
[1727230249451,2.73801,2645.3,2644.7,5.77074051]
[1727230249638,2.73801,2645.3,2644.8,0.97644051]
[1727230249839,2.73801,2645.3,2644.9,1.0605]
[1727230250038,2.36,2645.3,2645.1,0.37803]
[1727230250237,2.36,2645.3,2645.2,1.0226]
[1727230251248,2.73801,2645.3,2645.2,1.0226]
[1727230253449,6.14,2645.3,2644.8,0.97644051]
[1727230253748,1.96229,2645.4,2644.7,1.0157]
[1727230253749,2.36,2644.9,2644.7,1.0157]
[1727230254450,0.37809,2644.7,2644.3,1.35458051]
[1727230254751,0.37809,2644.7,2644.3,2.37028051]
[1727230254752,2.36,2644.4,2644.3,2.37028051]
[1727230256450,2.36,2644.4,2644.3,3.71476861]
[1727230256684,2.36,2644.7,2644.3,3.82484887]
[1727230256851,2.36,2644.7,2644.5,0.37811]
[1727230257455,2.36,2644.7,2644.5,1.43531]
[1727230260647,0.37808,2644.8,2644.5,1.43531]
[1727230260850,2.73803,2645.2,2644.9,0.37806]
[1727230261054,0.37804,2645.1,2644.8,0.37806]
[1727230261257,3.76233,2645.2,2644.9,2.51605]
[1727230261651,5.94579,2645.4,2645.1,0.37803]
[1727230262252,5.94579,2645.4,2644.9,2.138]
[1727230262253,5.5678,2645.4,2644.9,2.138]
[1727230262643,5.5678,2645.4,2645.1,0.37802]
[1727230263053,5.5678,2645.4,2644.9,2.138]
[1727230263253,3.2078,2645.4,2645.3,0.37801]
[1727230263958,2.36,2645.7,2645.6,0.37796]
[1727230264156,4.477,2645.9,2645.6,0.37796]
[1727230264352,4.477,2645.9,2645.2,1.93515163]
[1727230264353,3.4163,2645.9,2645.2,1.93515163]
[1727230264550,3.4163,2645.9,2645.7,0.37794]
[1727230265456,2.36,2645.9,2645.7,0.37794]
[1727230265756,1.0616,2646.2,2645.6,0.37796]
[1727230265961,2.36,2645.8,2645.6,0.37796]
[1727230266660,2.73794,2645.8,2645.5,2.46238]
[1727230266857,2.36,2645.6,2645.5,2.46238]
[1727230267062,2.36,2645.8,2645.6,0.37796]
[1727230267764,2.36,2645.8,2645.7,0.37795]
[1727230268149,2.36,2646.0,2645.7,4.15795]
[1727230268354,2.36,2646.0,2645.7,0.37795]
[1727230268560,2.73791,2646.0,2645.7,0.37795]
[1727230269260,2.36,2646.0,2645.7,0.37794]
[1727230269566,0.37796,2645.6,2645.5,1.0506]
[1727230269759,2.73796,2645.6,2645.5,1.0506]
[1727230270151,5.5678,2645.6,2645.2,1.0682]
[1727230270356,2.36,2645.3,2645.1,1.0644]
[1727230271550,2.73801,2645.3,2645.1,1.0644]
[1727230271767,3.73988,2645.5,2645.1,1.0644]
[1727230271963,3.73988,2645.5,2645.2,0.37801]
[1727230272153,3.3619,2645.5,2645.2,0.37801]
[1727230272349,3.73988,2645.5,2645.2,0.37801]
[1727230273166,3.3619,2645.5,2645.3,0.378]
[1727230273552,2.36,2645.5,2645.1,1.0644]
[1727230274561,2.36,2645.5,2645.3,0.378]
[1727230275188,2.36,2645.5,2645.1,1.44243]
[1727230275367,2.36,2645.3,2645.1,1.44243]
[1727230275597,2.73801,2645.3,2644.9,1.44625]
[1727230275758,2.73801,2645.3,2644.9,2.53896]
[1727230275958,2.36,2645.0,2644.6,3.2078]
[1727230276168,0.37809,2644.7,2644.6,1.0927]
[1727230276473,0.37809,2644.7,2644.3,0.37814]
[1727230276678,0.37815,2644.3,2644.0,0.99010163]
[1727230276967,2.36,2644.5,2644.2,0.37816]
[1727230277171,1.0127,2644.6,2644.4,0.37813]
[1727230277364,2.36,2644.5,2644.2,0.37815]
[1727230277666,2.36,2644.5,2644.3,0.37815]
[1727230278064,2.36,2644.5,2644.0,2.01060163]
[1727230278256,1.0127,2644.6,2644.0,2.01060163]
[1727230278461,1.0127,2644.6,2644.1,0.99010163]
[1727230279163,2.73807,2644.9,2644.2,3.2078]
[1727230279569,2.36,2644.9,2644.6,0.3781]
[1727230279774,2.36,2644.9,2644.7,1.0573]
[1727230280268,2.36,2644.9,2644.7,1.43539]
[1727230281170,2.36,2644.9,2644.8,3.7808]
[1727230281504,25.72456446,2654.1,2644.8,3.7808]
[1727230281505,0.37798,2645.5,2645.1,0.37802]
[1727230281671,0.37797,2645.6,2645.2,1.38442]
[1727230281972,0.37798,2645.5,2645.3,1.0573]
[1727230282172,2.36,2645.7,2645.3,1.0573]
[1727230282367,2.36,2645.4,2645.3,1.0573]
[1727230282675,2.73799,2645.4,2645.3,1.0573]
[1727230283661,0.37799,2645.4,2645.3,1.0573]
[1727230286469,2.36,2645.5,2645.3,1.43531]
[1727230286663,2.36,2645.5,2645.3,1.0573]
[1727230286664,2.73798,2645.5,2645.3,1.0573]
[1727230286863,2.36,2645.5,2645.3,1.4353]
[1727230288170,2.73798,2645.5,2645.3,1.0573]
[1727230289067,2.36,2645.5,2645.3,1.0573]
[1727230289258,0.37799,2645.4,2645.3,1.0573]
[1727230289861,2.73798,2645.5,2645.3,1.0573]
[1727230292170,0.37795,2645.7,2645.3,1.0573]
[1727230292376,1.0013,2645.8,2645.5,0.37797]
[1727230292674,0.37795,2645.7,2645.4,1.40728]
[1727230293672,0.37795,2645.7,2645.4,1.0293]
[1727230293868,0.37795,2645.7,2645.4,1.40728]
[1727230294667,2.36,2645.6,2645.3,1.4353]
[1727230295182,2.73797,2645.6,2645.3,1.4353]
[1727230295497,2.36,2645.6,2645.4,0.37799]
[1727230296187,6.9878,2645.5,2645.1,0.37803]
[1727230296370,0.94513,2645.0,2644.5,0.087]
[1727230296567,0.37812,2644.5,2644.4,1.1141]
[1727230296775,2.36,2644.5,2644.1,0.99010163]
[1727230296972,0.37816,2644.3,2644.1,1.1141]
[1727230297173,0.37816,2644.2,2644.1,1.1141]
[1727230297367,0.37815,2644.3,2644.1,1.1141]
[1727230297573,2.36,2644.4,2644.1,1.1141]
[1727230297779,0.37814,2644.4,2644.1,1.1141]
[1727230298576,0.37813,2644.5,2644.1,1.1141]
[1727230299172,2.36,2644.7,2644.1,1.1141]
[1727230299173,0.37814,2644.4,2644.1,1.1141]
[1727230299667,2.73814,2644.4,2644.1,1.1141]
[1727230301382,2.36,2644.4,2644.1,1.1141]
[1727230301982,2.36,2644.4,2644.1,1.49228]
[1727230302480,2.73811,2644.6,2644.2,0.37816]
[1727230303075,0.37812,2644.5,2644.1,1.49227]
[1727230303385,2.36,2644.4,2644.1,1.49227]
[1727230303574,2.73814,2644.4,2644.1,1.1141]
[1727230303774,0.37815,2644.3,2644.1,1.1141]
[1727230304778,2.36,2644.4,2644.1,1.49227]
[1727230304980,0.37816,2644.3,2644.0,3.2078]
[1727230305280,0.37815,2644.3,2643.9,2.5306]
[1727230308887,0.37816,2644.2,2643.9,2.5306]
[1727230309180,2.73816,2644.2,2643.9,2.5306]
[1727230310174,0.37816,2644.2,2643.8,0.37821]
[1727230310379,0.37816,2644.2,2643.9,2.2115]
[1727230310580,3.427,2644.3,2644.0,0.37819]
[1727230310982,3.427,2644.3,2644.0,0.37818]
[1727230311382,3.80515,2644.3,2644.0,0.37818]
[1727230311896,2.36,2644.7,2644.0,3.7816]
[1727230312082,3.2078,2644.1,2643.4,0.99010163]
[1727230312283,3.2078,2643.9,2643.3,6.991]
[1727230312482,2.36,2643.4,2643.2,0.3783]
[1727230312778,2.36,2643.4,2643.3,0.37829]
[1727230313189,2.36,2643.4,2643.3,3.7832]
[1727230313788,2.36,2643.7,2643.3,9.7832]
[1727230313975,2.36,2643.7,2643.4,0.37827]
[1727230314180,2.36,2643.5,2643.1,44.1279]
[1727230314391,2.36,2643.2,2643.1,3.70621]
[1727230314590,0.37824,2643.7,2643.2,0.3783]
[1727230314882,3.2078,2643.9,2643.5,0.37826]
[1727230315082,3.2078,2643.9,2643.6,1.0355]
[1727230315678,3.2078,2643.9,2643.6,1.41374]
[1727230315879,2.36,2644.0,2643.7,1.0121]
[1727230316081,2.36,2644.0,2643.7,2.0347]
[1727230317588,3.2078,2644.2,2643.7,2.0347]
[1727230317793,5.5678,2644.2,2643.8,0.37821]
[1727230317986,2.36,2644.0,2643.7,2.0347]
[1727230318384,2.36,2644.0,2643.7,2.41293]
[1727230318916,2.36,2644.0,2643.8,0.37822]
[1727230319195,2.36,2644.1,2643.8,0.37822]
[1727230319487,2.36,2644.1,2643.9,0.3782]
[1727230320086,2.36,2644.1,2644.0,0.37819]
[1727230320393,2.36,2644.1,2643.9,4.16059]
[1727230320598,2.36,2644.1,2644.0,0.37819]
[1727230321091,2.36,2644.1,2644.0,4.16059]
[1727230321795,2.36,2644.1,2644.0,3.7824]
[1727230322185,2.36,2644.1,2643.9,0.3782]
[1727230322691,2.36,2644.1,2643.7,2.0347]
[1727230322692,2.36,2644.1,2643.8,0.37821]
[1727230322991,2.36,2643.9,2643.8,0.37821]
[1727230323191,2.36,2644.1,2643.9,0.3782]
[1727230325699,2.36,2644.1,2643.8,0.37822]
[1727230325886,2.73818,2644.1,2643.8,0.37822]
[1727230326293,2.36,2644.1,2643.8,0.37822]
[1727230326996,5.5678,2643.9,2643.7,1.0121]
[1727230327193,5.5678,2643.9,2643.2,40.888]
[1727230327393,2.36,2643.3,2643.2,41.1783]
[1727230327596,2.36,2643.4,2643.2,41.1783]
[1727230328102,2.73828,2643.4,2643.1,2.49561]
[1727230328489,2.73828,2643.4,2643.1,43.29561]
[1727230330287,2.36,2643.2,2643.1,42.9173]
[1727230330495,2.36,2643.2,2643.1,1.1046]
[1727230332386,2.73831,2643.2,2643.1,1.1046]
[1727230333400,0.37832,2643.1,2642.8,0.37836]
[1727230333601,0.37832,2643.1,2642.8,1.40116]
[1727230334302,2.73831,2643.2,2642.9,0.37834]
[1727230335203,2.36,2643.2,2643.0,0.37833]
[1727230335891,2.36,2643.2,2643.1,1.0604]
[1727230336398,3.2078,2643.3,2643.1,4.8436]
[1727230336614,3.2078,2643.7,2643.5,0.37825]
[1727230336902,3.2078,2643.7,2643.6,1.39925]
[1727230337100,5.94604,2643.7,2643.1,1.0604]
[1727230337293,5.94604,2643.7,2643.4,0.37827]
[1727230337998,5.5678,2643.7,2643.3,1.0983]
[1727230338203,2.36,2643.7,2643.6,0.37825]
[1727230338407,5.5678,2644.1,2643.4,3.7832]
[1727230338595,5.5678,2644.1,2643.5,2.04066]
[1727230338796,5.5678,2644.1,2643.7,0.37823]
[1727230338797,2.36,2643.9,2643.7,0.37823]
[1727230339000,2.36,2643.9,2643.6,1.0805]
[1727230339305,2.36,2643.9,2643.6,1.45874]
[1727230339306,2.73821,2643.9,2643.6,1.45874]
[1727230341109,0.37821,2643.9,2643.6,1.45874]
[1727230341307,2.36,2643.7,2643.6,1.0805]
[1727230341809,2.36,2643.7,2643.6,1.45875]
[1727230342606,2.36,2643.7,2643.6,1.0805]
[1727230342810,2.36,2643.7,2643.6,1.45875]
[1727230343001,2.36,2643.7,2643.6,1.0805]
[1727230343603,3.41,2643.9,2643.7,0.37823]
[1727230343802,3.41,2643.9,2643.6,1.0805]
[1727230343803,2.36,2643.9,2643.8,0.37822]
[1727230346005,3.2078,2644.1,2643.6,1.0805]
[1727230346204,3.2078,2644.1,2643.6,2.07060163]
[1727230346705,3.2078,2644.1,2643.9,0.37819]
[1727230346907,3.2078,2644.1,2644.0,0.9933]
[1727230350515,3.2078,2644.1,2644.0,1.37149]
[1727230351006,3.2078,2644.1,2644.0,0.9933]
[1727230352109,5.94597,2644.2,2644.0,0.9933]
[1727230352810,0.37818,2644.1,2644.0,0.9933]
[1727230353315,0.37818,2644.1,2643.8,0.37821]
[1727230353615,0.37818,2644.1,2643.8,1.47411]
[1727230354515,0.37818,2644.1,2643.9,0.3782]
[1727230356911,6.51322,2644.2,2643.8,1.0959]
[1727230357214,5.94601,2643.9,2643.8,1.0959]
[1727230359612,5.94601,2643.9,2643.6,2.47004]
[1727230360712,3.58601,2643.9,2643.7,0.37823]
[1727230362521,3.58601,2643.9,2643.6,2.47004]
[1727230362719,3.58601,2643.9,2643.6,3.46014163]
[1727230362914,3.58601,2643.9,2643.6,2.47004]
[1727230363519,0.37821,2643.9,2643.6,2.47004]
[1727230364620,0.3782,2644.0,2643.7,0.37822]
[1727230365021,5.94599,2644.1,2643.8,0.37822]
[1727230365317,3.2078,2644.1,2643.6,6.28970163]
[1727230365619,3.2078,2644.1,2643.9,0.37819]
[1727230366231,3.2078,2644.1,2644.0,0.9995]
[1727230366521,3.2078,2644.1,2644.0,1.37769]
[1727230367314,2.44716711,2644.6,2644.0,4.7819]
[1727230367315,3.2078,2644.5,2644.0,4.7819]
[1727230367517,3.2078,2644.5,2644.1,2.1]
[1727230367722,3.2078,2644.5,2644.1,3.09010163]
[1727230368422,3.2078,2644.5,2644.3,0.37814]
[1727230368813,3.2078,2644.5,2644.4,1.0456]
[1727230369620,5.5678,2644.5,2644.4,1.0456]
[1727230370220,5.94592,2644.5,2644.4,1.0456]
[1727230370531,9.72752,2644.5,2644.2,0.37816]
[1727230370723,2.36,2644.3,2644.2,0.37816]
[1727230372616,5.94592,2644.5,2644.2,0.37816]
[1727230378237,2.73812,2644.5,2644.2,0.37816]
[1727230378424,5.94592,2644.5,2644.2,0.37816]
[1727230378729,5.94592,2644.5,2644.3,0.37815]
[1727230378730,5.5678,2644.5,2644.3,0.37815]
[1727230379132,5.94592,2644.5,2644.3,0.37815]
[1727230381142,5.5678,2644.5,2644.1,4.13570163]
[1727230381430,4.45983711,2644.9,2644.2,2.32653197]
[1727230381431,3.2078,2644.9,2644.2,2.32653197]
[1727230381625,3.2078,2644.9,2644.7,0.37808]
[1727230381827,3.2078,2644.9,2644.8,2.0559]
[1727230382336,5.5678,2644.9,2644.8,2.0559]
[1727230386328,4.2978,2644.9,2644.8,2.43398]
[1727230386533,3.2078,2645.2,2644.9,0.37806]
[1727230387437,3.58582,2645.2,2644.9,0.37806]
[1727230388139,4.67582,2645.2,2644.9,0.37806]
[1727230388332,3.58582,2645.2,2644.9,0.37806]
[1727230389636,3.2078,2645.2,2645.0,0.37804]
[1727230394335,0.37802,2645.2,2645.0,0.37804]
[1727230394532,3.2078,2645.1,2645.0,0.37804]
[1727230401239,9.3486,2645.1,2644.8,0.9814]
[1727230401548,9.3486,2645.1,2644.5,1.0175]
[1727230401549,0.37811,2644.6,2644.5,1.0175]
[1727230401936,0.37811,2644.6,2644.3,4.58094]
[1727230402136,0.37811,2644.6,2644.3,5.59844]
[1727230402643,3.2078,2644.4,2644.1,2.03790163]
[1727230402843,2.73815,2644.3,2644.1,1.0478]
[1727230403045,2.36,2644.3,2644.1,1.42597]
[1727230406945,3.58594,2644.4,2644.1,1.42597]
[1727230409245,3.58594,2644.4,2644.1,1.0478]
[1727230409246,3.2078,2644.4,2644.1,1.0478]
[1727230409441,4.4688103,2644.9,2644.2,1.09]
[1727230409644,4.4688103,2644.9,2644.1,1.99324]
[1727230409645,3.58585,2645.0,2644.7,0.37809]
[1727230409850,0.37806,2644.9,2644.8,1.0549]
[1727230410071,1.46806,2644.9,2644.8,1.0549]
[1727230410241,1.46806,2644.9,2644.7,1.0003]
[1727230410451,2.73806,2644.9,2644.7,1.0003]
[1727230410853,2.73806,2644.9,2644.6,0.3781]
[1727230411057,3.2078,2644.7,2644.6,0.3781]
[1727230411663,3.2078,2644.7,2644.2,2.05610163]
[1727230411664,9.3494,2644.7,2644.2,2.05610163]
[1727230411858,0.37813,2644.5,2644.2,3.47356163]
[1727230412041,3.58594,2644.4,2644.2,2.1053]
[1727230412241,3.2078,2644.4,2644.2,2.48346]
[1727230414954,0.37813,2644.5,2644.2,2.1053]
[1727230415157,0.37813,2644.5,2644.2,2.48345]
[1727230415352,0.37813,2644.5,2644.2,3.47355163]
[1727230415558,0.37813,2644.5,2644.2,2.48345]
[1727230415755,0.37813,2644.5,2644.2,3.47355163]
[1727230415956,0.37813,2644.5,2644.2,2.48345]
[1727230416254,0.37813,2644.5,2644.2,3.47355163]
[1727230417548,0.37813,2644.5,2644.2,2.48345]
[1727230417750,2.46331,2644.6,2644.3,0.37814]
[1727230417950,0.37811,2644.6,2644.3,0.37814]
[1727230423354,0.37811,2644.6,2644.2,3.09540163]
[1727230423355,3.2078,2644.7,2644.2,5.45540163]
[1727230423556,4.2323,2645.0,2644.4,0.99010163]
[1727230423866,4.61036,2645.0,2644.7,0.37808]
[1727230424660,4.61036,2645.0,2644.8,1.0052]
[1727230426061,0.37806,2644.9,2644.8,1.0052]
[1727230426265,0.37808,2644.8,2644.6,2.4242]
[1727230426460,0.37808,2644.8,2644.6,3.4342]
[1727230428164,6.5923,2645.0,2644.7,0.37808]
[1727230428355,4.61036,2645.0,2644.7,0.37808]
[1727230428558,0.37806,2644.9,2644.7,0.37808]
[1727230430861,3.2078,2645.0,2644.8,0.37808]
[1727230431057,3.2078,2645.0,2644.9,0.37806]
[1727230431866,3.2078,2645.0,2644.8,0.37807]
[1727230433267,1.46804,2645.1,2644.8,0.37807]
[1727230433567,0.37804,2645.1,2644.8,0.37807]
[1727230435357,1.46803,2645.2,2644.9,0.37806]
[1727230435567,1.46803,2645.2,2645.0,1.055]
[1727230439266,3.2078,2645.1,2644.7,0.99010163]
[1727230439462,3.2078,2645.1,2644.4,1.98130163]
[1727230439463,4.2978,2644.8,2644.4,1.98130163]
[1727230439774,3.2078,2644.8,2644.6,0.37811]
[1727230439977,0.37807,2644.9,2644.6,0.37811]
[1727230440779,1.46809,2644.7,2644.4,1.98130163]
[1727230440974,1.09,2644.7,2644.4,1.98130163]
[1727230441367,1.09,2644.7,2644.4,0.9912]
[1727230441572,1.09,2644.7,2644.4,1.98130163]
[1727230441774,1.4681,2644.7,2644.4,2.35943163]
[1727230441968,1.09,2644.7,2644.4,1.36933]
[1727230442173,0.3781,2644.7,2644.5,0.37812]
[1727230442879,0.3781,2644.7,2644.4,2.35943163]
[1727230443181,0.37811,2644.6,2644.4,0.9912]
[1727230443366,0.3781,2644.7,2644.4,1.36933]
[1727230443587,0.3781,2644.7,2644.4,2.35943163]
[1727230445572,2.46228541,2645.6,2644.8,0.37808]
[1727230445773,3.58574,2645.8,2645.5,1.46797]
[1727230445978,0.37791,2646.0,2645.7,1.46794]
[1727230446170,3.2078,2646.1,2645.8,1.003]
[1727230446171,3.5857,2646.1,2645.8,1.003]
[1727230446367,3.5857,2646.1,2645.5,41.89]
[1727230446368,1.09,2645.9,2645.7,1.032]
[1727230446581,1.46793,2645.9,2645.5,43.21667]
[1727230446778,1.46792,2645.9,2645.6,0.37796]
[1727230446977,1.09,2645.9,2645.6,0.37796]
[1727230447278,1.09,2645.9,2645.5,2.0387]
[1727230447480,2.1183,2645.9,2645.5,2.0387]
[1727230447979,0.37794,2645.8,2645.5,2.0387]
[1727230448477,1.40623,2645.9,2645.5,2.0387]
[1727230448870,3.2078,2645.8,2645.5,1.003]
[1727230449076,3.2078,2645.8,2645.1,0.9933]
[1727230449272,0.37796,2645.6,2645.2,0.37801]
[1727230450382,0.37796,2645.6,2645.1,3.40403]
[1727230450898,0.37796,2645.6,2645.2,0.37802]
[1727230451783,0.37798,2645.5,2645.1,3.40403]
[1727230452482,3.349,2645.7,2645.2,0.37802]
[1727230452483,0.37797,2645.6,2645.2,0.37802]
[1727230454483,0.37797,2645.6,2645.3,0.378]
[1727230454984,5.67008541,2645.8,2645.6,0.37796]
[1727230455188,1.40623,2645.9,2645.7,1.0336]
[1727230455789,3.5857,2646.1,2645.8,0.37793]
[1727230455994,3.5857,2646.1,2645.8,1.42193]
[1727230456189,3.5857,2646.1,2645.8,1.044]
[1727230456382,0.37791,2646.0,2645.8,1.044]
[1727230456588,3.5857,2646.1,2645.8,1.42193]
[1727230456794,3.5857,2646.1,2645.8,1.044]
[1727230457104,0.37791,2646.0,2645.8,1.044]
[1727230459298,0.37791,2646.0,2645.1,2.07136256]
[1727230459299,2.36,2645.9,2645.1,2.07136256]
[1727230459505,0.37798,2645.5,2645.4,1.0157]
[1727230459798,0.37797,2645.6,2645.4,1.0157]
[1727230462514,3.2078,2645.9,2645.5,2.36]
[1727230462702,0.94463,2646.4,2645.8,0.37793]
[1727230462703,0.3779,2646.1,2645.8,0.37793]
[1727230462895,0.3779,2646.1,2645.9,1.063]
[1727230463301,0.3779,2646.1,2646.0,0.9814]
[1727230464099,3.58568,2646.2,2646.0,0.9814]
[1727230464811,0.37787,2646.3,2646.0,3.7193]
[1727230465002,3.2078,2646.8,2646.4,2.36]
[1727230465196,0.9926,2647.0,2646.6,0.37781]
[1727230465508,4.2408,2647.1,2646.5,42.7939]
[1727230465713,4.2408,2647.1,2646.6,0.37781]
[1727230465899,0.37776,2647.0,2646.6,0.37781]
[1727230466202,0.37776,2647.0,2646.5,44.15213]
[1727230466398,1.34726,2647.0,2646.5,44.15213]
[1727230466603,1.34726,2647.0,2646.5,3.35213]
[1727230470105,0.9695,2647.0,2646.5,2.9743]
[1727230470309,0.37777,2647.0,2646.5,3.35212]
[1727230470512,0.37777,2647.0,2646.5,2.9743]
[1727230470910,0.37776,2647.1,2646.6,0.37781]
[1727230471107,3.2078,2647.2,2646.5,2.9743]
[1727230471309,3.2078,2647.2,2646.8,0.37778]
[1727230471619,3.58553,2647.2,2646.9,1.0652]
[1727230472005,4.2241,2647.5,2646.9,1.0652]
[1727230472201,0.37773,2647.3,2646.9,1.44297]
[1727230474312,3.2078,2647.5,2647.1,2.36]
[1727230474510,3.2078,2647.5,2647.2,1.40333]
[1727230474916,3.2078,2647.5,2647.3,1.0176]
[1727230475810,4.2893,2647.9,2647.4,3.7776]
[1727230476011,0.37766,2647.8,2647.5,1.0297]
[1727230477018,3.58544,2647.9,2647.5,1.0297]
[1727230477826,0.37765,2647.8,2647.5,1.0297]
[1727230478120,3.2078,2647.9,2647.3,1.0176]
[1727230478121,0.37766,2647.7,2647.3,1.0176]
[1727230478329,0.37766,2647.7,2647.3,1.39531]
[1727230478626,1.42226,2647.8,2647.3,1.39531]
[1727230478821,0.37766,2647.8,2647.3,3.75531]
[1727230481214,3.2078,2647.9,2647.3,3.75531]
[1727230481215,0.37766,2647.7,2647.3,3.75531]
[1727230481618,0.37766,2647.7,2647.3,1.39531]
[1727230482943,0.37767,2647.7,2647.3,1.39531]
[1727230483118,0.37767,2647.7,2647.3,3.75531]
[1727230484422,3.2078,2647.5,2647.0,1.0251]
[1727230484631,1.0387,2647.4,2647.0,2.0953]
[1727230484929,1.0722,2647.6,2647.2,2.36]
[1727230485131,1.44988,2647.6,2647.2,2.73772]
[1727230485735,1.44988,2647.6,2647.3,0.37772]
[1727230486128,0.37768,2647.6,2647.4,1.0702]
[1727230489740,0.37768,2647.6,2647.5,1.0714]
[1727230496737,0.37767,2647.7,2647.5,1.0714]
[1727230497226,0.37767,2647.7,2647.6,1.0536]
[1727230499633,0.37768,2647.6,2647.5,1.0714]
[1727230502451,0.37768,2647.6,2647.5,2.1614]
[1727230503142,0.37768,2647.6,2647.5,1.0714]
[1727230509549,0.37768,2647.6,2647.0,1.0661]
[1727230509550,0.37775,2647.2,2647.0,1.0661]
[1727230509744,3.2078,2647.4,2647.0,1.0661]
[1727230509941,0.37774,2647.2,2647.0,2.1561]
[1727230510456,3.2078,2647.4,2647.0,2.1561]
[1727230511551,0.37773,2647.2,2647.0,2.1561]
[1727230512146,0.37775,2647.1,2647.0,2.1561]
[1727230512552,0.37775,2647.1,2647.0,1.0661]
[1727230512750,0.37776,2647.0,2646.9,1.0083]
[1727230513754,2.46228541,2647.3,2646.9,4.7859]
[1727230514055,6.57128541,2647.8,2647.2,1.09]
[1727230514247,5.67008541,2647.9,2647.7,1.09]
[1727230514447,3.58544,2647.9,2647.8,1.0662]
[1727230514642,6.04772541,2647.9,2647.8,1.0662]
[1727230515773,3.58544,2647.9,2647.8,1.0662]
[1727230516251,7.04905496,2647.9,2647.8,1.0662]
[1727230516450,7.04905496,2647.9,2647.3,2.50112]
[1727230516451,0.37768,2647.6,2647.5,2.36]
[1727230519171,2.95908458,2647.7,2647.5,2.36]
[1727230519352,2.95908458,2647.7,2647.5,2.73769]
[1727230519558,3.33674458,2647.8,2647.5,2.73769]
[1727230519863,2.95908458,2647.8,2647.5,2.36]
[1727230520352,2.95908458,2647.8,2647.5,2.73768]
[1727230520660,2.95908458,2647.8,2647.7,0.37766]
[1727230520857,6.16688458,2647.9,2647.7,0.37766]
[1727230521054,6.16688458,2647.9,2647.5,2.36]
[1727230521055,3.58543,2647.9,2647.8,2.0641]
[1727230521951,3.2078,2647.9,2647.8,2.0641]
[1727230522158,6.17006538,2647.9,2647.8,2.0641]
[1727230522380,6.16994251,2647.9,2647.8,3.1146]
[1727230523154,6.16996343,2647.9,2647.8,3.1146]
[1727230523355,6.16992075,2647.9,2647.8,3.1146]
[1727230523555,2.96212075,2647.9,2647.8,3.49225]
[1727230523855,0.37761,2648.1,2647.8,3.49225]
[1727230525057,5.6762699,2648.3,2647.8,4.48231256]
[1727230525361,0.37761,2648.1,2647.8,3.49225]
[1727230525857,0.37761,2648.1,2647.8,4.48231256]
[1727230526062,0.37761,2648.1,2647.8,3.49225]
[1727230526859,0.37762,2648.0,2647.8,3.1146]
[1727230527163,0.37761,2648.1,2647.8,3.1146]
[1727230527554,3.2078,2648.3,2647.8,3.1146]
[1727230527761,0.37762,2648.0,2647.8,3.1146]
[1727230528462,0.37761,2648.1,2647.8,3.1146]
[1727230529154,0.37761,2648.1,2647.8,3.49224]
[1727230530961,0.37761,2648.1,2647.8,3.1146]
[1727230534169,0.37762,2648.0,2647.8,3.1146]
[1727230534467,0.37768,2647.6,2647.5,0.99006256]
[1727230534661,0.37768,2647.6,2647.1,2.81884129]
[1727230534662,1.32207,2647.2,2647.1,0.99006256]
[1727230534969,6.51214,2647.2,2646.7,3.03786256]
[1727230535167,0.37779,2646.8,2646.7,2.0478]
[1727230536568,3.7784,2646.8,2646.3,0.99006256]
[1727230536862,3.2078,2646.9,2646.3,0.37786]
[1727230536863,0.37782,2646.7,2646.3,0.37786]
[1727230538973,0.37784,2646.5,2646.2,2.0892]
[1727230540172,3.58563,2646.6,2646.2,2.46708]
[1727230540378,0.37783,2646.6,2646.2,2.46708]
[1727230540677,3.58563,2646.6,2646.2,2.46708]
[1727230541868,3.58563,2646.6,2646.2,2.0892]
[1727230541869,0.37785,2646.4,2646.2,2.0892]
[1727230547776,3.58564,2646.5,2646.2,2.46707]
[1727230548278,3.58563,2646.5,2646.3,0.37786]
[1727230548574,3.58563,2646.5,2646.2,2.46707]
[1727230552079,0.37783,2646.5,2646.2,2.46707]
[1727230554377,1.99439,2646.8,2646.5,0.37783]
[1727230554378,0.3778,2646.8,2646.5,0.37783]
[1727230554582,3.2078,2647.0,2646.6,2.0716]
[1727230554583,0.37781,2646.7,2646.6,2.0716]
[1727230555281,3.58561,2646.7,2646.6,2.0716]
[1727230555478,3.58561,2646.7,2646.6,1.0145]
[1727230555875,7.36401,2646.7,2646.6,1.0145]
[1727230556077,0.37785,2646.4,2646.3,1.0571]